[Event "Titled Tuesday Blitz February 28 Early 2023"]
[White "Skliarov, Viktor"]
[Black "Ibadov, Dashgyn"]
[WhiteFideId "14106736"]
[BlackFideId "24107514"]
[WhiteElo "2284"]
[BlackElo "2208"]
[Result "1-0"]
[Round "10"]
[TimeControl "180+2"]
[Date "2023.02.28"]
[WhiteClock "0:00:04"]
[BlackClock "0:00:01"]

1. e4 {[%clk 0:03:00]}  e5 {[%clk 0:02:58]} 2. Nc3 {[%clk 0:03:00]}  Nf6 {[%clk 0:02:58]} 3. Bc4 {[%clk 0:03:01]}  Nc6 {[%clk 0:02:57]} 4. d3 {[%clk 0:03:01]}  Bc5 {[%clk 0:02:57]} 5. a3 {[%clk 0:03:01]}  a6 {[%clk 0:02:54]} 6. h3 {[%clk 0:03:00]}  d6 {[%clk 0:02:54]} 7. Nge2 {[%clk 0:03:01]}  b5 {[%clk 0:02:47]} 8. Ba2 {[%clk 0:03:00]}  O-O {[%clk 0:02:47]} 9. Ng3 {[%clk 0:03:00]}  Nd4 {[%clk 0:02:45]} 10. O-O {[%clk 0:02:58]}  Be6 {[%clk 0:02:43]} 11. Nd5 {[%clk 0:02:59]}  c6 {[%clk 0:02:34]} 12. Nxf6+ {[%clk 0:02:57]}  Qxf6 {[%clk 0:02:35]} 13. c3 {[%clk 0:02:53]}  Bxa2 {[%clk 0:02:01]} 14. cxd4 {[%clk 0:02:50]}  Bxd4 {[%clk 0:02:02]} 15. Rxa2 {[%clk 0:02:50]}  Qg6 {[%clk 0:02:01]} 16. Kh2 {[%clk 0:02:47]}  c5 {[%clk 0:01:38]} 17. Be3 {[%clk 0:02:43]}  Qe6 {[%clk 0:01:33]} 18. b3 {[%clk 0:02:41]}  g6 {[%clk 0:01:33]} 19. Bxd4 {[%clk 0:02:21]}  cxd4 {[%clk 0:01:34]} 20. Qb1 {[%clk 0:02:20]}  f5 {[%clk 0:01:29]} 21. f3 {[%clk 0:02:18]}  f4 {[%clk 0:01:26]} 22. Ne2 {[%clk 0:02:17]}  g5 {[%clk 0:00:55]} 23. Rc1 {[%clk 0:02:12]}  Rf7 {[%clk 0:00:53]} 24. Rc6 {[%clk 0:02:05]}  h5 {[%clk 0:00:52]} 25. Rac2 {[%clk 0:01:59]}  g4 {[%clk 0:00:49]} 26. b4 {[%clk 0:01:34]}  Raf8 {[%clk 0:00:18]} 27. Qa2 {[%clk 0:01:31]}  Qg6 {[%clk 0:00:18]} 28. Rc7 {[%clk 0:01:26]}  Kh8 {[%clk 0:00:17]} 29. Rxf7 {[%clk 0:01:20]}  Rxf7 {[%clk 0:00:18]} 30. Rc8+ {[%clk 0:01:19]}  Kh7 {[%clk 0:00:19]} 31. Qb1 {[%clk 0:00:39]}  Rg7 {[%clk 0:00:11]} 32. Qf1 {[%clk 0:00:36]}  gxh3 {[%clk 0:00:09]} 33. gxh3 {[%clk 0:00:36]}  h4 {[%clk 0:00:10]} 34. Qg1 {[%clk 0:00:25]}  Qe6 {[%clk 0:00:09]} 35. Qc1 {[%clk 0:00:21]}  Qa2 {[%clk 0:00:06]} 36. Rc2 {[%clk 0:00:17]}  Qb3 {[%clk 0:00:07]} 37. Rc7 {[%clk 0:00:11]}  Qxd3 {[%clk 0:00:07]} 38. Rxg7+ {[%clk 0:00:11]}  Kxg7 {[%clk 0:00:07]} 39. Qg1+ {[%clk 0:00:10]}  Kf7 {[%clk 0:00:07]} 40. Qf2 {[%clk 0:00:10]}  Qe3 {[%clk 0:00:06]} 41. Kg2 {[%clk 0:00:09]}  d3 {[%clk 0:00:06]} 42. Nc3 {[%clk 0:00:09]}  Qc1 {[%clk 0:00:04]} 43. Qa7+ {[%clk 0:00:06]}  Kg6 {[%clk 0:00:03]} 44. Nd5 {[%clk 0:00:03]}  d2 {[%clk 0:00:03]} 45. Qe7 {[%clk 0:00:03]}  d1=Q {[%clk 0:00:02]} 46. Qf6+ {[%clk 0:00:04]}  Kh7 {[%clk 0:00:01]} 47. Qf7+ {[%clk 0:00:04]} 1-0


[Site "https://www.chess.com"]

[Event "Titled Tuesday Blitz February 28 Early 2023"]
[White "Balla, Tamas-Kristof"]
[Black "Jakubowski, Krzysztof"]
[WhiteFideId "1208497"]
[BlackFideId "1112848"]
[WhiteElo "2334"]
[BlackElo "2359"]
[Result "0-1"]
[Round "10"]
[TimeControl "180+2"]
[Date "2023.02.28"]
[WhiteClock "0:00:04"]
[BlackClock "0:00:27"]

1. e4 {[%clk 0:03:00]}  c5 {[%clk 0:02:59]} 2. Nf3 {[%clk 0:03:00]}  e6 {[%clk 0:02:59]} 3. c3 {[%clk 0:03:00]}  Nf6 {[%clk 0:02:58]} 4. e5 {[%clk 0:03:00]}  Nd5 {[%clk 0:02:58]} 5. d4 {[%clk 0:03:01]}  cxd4 {[%clk 0:02:57]} 6. cxd4 {[%clk 0:03:01]}  d6 {[%clk 0:02:57]} 7. a3 {[%clk 0:02:59]}  Bd7 {[%clk 0:02:56]} 8. Bd3 {[%clk 0:02:59]}  Bc6 {[%clk 0:02:55]} 9. O-O {[%clk 0:02:59]}  Nd7 {[%clk 0:02:54]} 10. Nbd2 {[%clk 0:02:53]}  dxe5 {[%clk 0:02:50]} 11. dxe5 {[%clk 0:02:52]}  Nf4 {[%clk 0:02:37]} 12. Ne4 {[%clk 0:02:49]}  Nxd3 {[%clk 0:02:32]} 13. Qxd3 {[%clk 0:02:50]}  Nc5 {[%clk 0:02:31]} 14. Nxc5 {[%clk 0:02:35]}  Bxc5 {[%clk 0:02:30]} 15. Qc3 {[%clk 0:02:29]}  Bb6 {[%clk 0:02:06]} 16. Bg5 {[%clk 0:02:12]}  Qc7 {[%clk 0:02:02]} 17. Rac1 {[%clk 0:02:04]}  O-O {[%clk 0:02:02]} 18. Nd4 {[%clk 0:01:54]}  Qxe5 {[%clk 0:01:56]} 19. Be3 {[%clk 0:01:48]}  Bd5 {[%clk 0:01:51]} 20. Qd2 {[%clk 0:01:34]}  Rac8 {[%clk 0:01:45]} 21. Nc2 {[%clk 0:01:33]}  Qe4 {[%clk 0:01:40]} 22. f3 {[%clk 0:01:25]}  Rxc2 {[%clk 0:01:35]} 23. fxe4 {[%clk 0:01:12]}  Rxd2 {[%clk 0:01:34]} 24. Bxb6 {[%clk 0:01:12]}  Bxe4 {[%clk 0:01:31]} 25. Rf2 {[%clk 0:01:04]}  Rxf2 {[%clk 0:01:22]} 26. Bxf2 {[%clk 0:01:05]}  a6 {[%clk 0:01:18]} 27. Bd4 {[%clk 0:00:47]}  f6 {[%clk 0:01:11]} 28. Rc7 {[%clk 0:00:46]}  Rd8 {[%clk 0:01:11]} 29. Bc3 {[%clk 0:00:46]}  h5 {[%clk 0:00:58]} 30. h3 {[%clk 0:00:45]}  e5 {[%clk 0:00:56]} 31. g4 {[%clk 0:00:44]}  hxg4 {[%clk 0:00:47]} 32. hxg4 {[%clk 0:00:44]}  Kh7 {[%clk 0:00:46]} 33. Kf2 {[%clk 0:00:41]}  Kg6 {[%clk 0:00:45]} 34. Rc4 {[%clk 0:00:32]}  Bc6 {[%clk 0:00:44]} 35. Bb4 {[%clk 0:00:24]}  Rh8 {[%clk 0:00:44]} 36. Kg3 {[%clk 0:00:23]}  Rh1 {[%clk 0:00:44]} 37. Bc3 {[%clk 0:00:24]}  Rd1 {[%clk 0:00:40]} 38. g5 {[%clk 0:00:19]}  Kxg5 {[%clk 0:00:37]} 39. Bb4 {[%clk 0:00:11]}  Rd3+ {[%clk 0:00:32]} 40. Kh2 {[%clk 0:00:10]}  Kf5 {[%clk 0:00:30]} 41. Bc3 {[%clk 0:00:09]}  g5 {[%clk 0:00:29]} 42. Kg1 {[%clk 0:00:07]}  g4 {[%clk 0:00:29]} 43. Bb4 {[%clk 0:00:04]}  g3 {[%clk 0:00:28]} 44. Rc2 {[%clk 0:00:04]}  Rd1+ {[%clk 0:00:27]} 0-1


[Site "https://www.chess.com"]

[Event "Titled Tuesday Blitz February 28 Early 2023"]
[White "Gabdrakhmanov, Azat"]
[Black "Kochetov, Andrey"]
[WhiteFideId "34189197"]
[BlackFideId "24130532"]
[WhiteElo "2315"]
[BlackElo "2461"]
[Result "0-1"]
[Round "10"]
[TimeControl "180+2"]
[Date "2023.02.28"]
[WhiteClock "0:00:05"]
[BlackClock "0:00:09"]

1. e4 {[%clk 0:02:55]}  c5 {[%clk 0:02:59]} 2. Nf3 {[%clk 0:02:54]}  d6 {[%clk 0:02:59]} 3. d4 {[%clk 0:02:54]}  cxd4 {[%clk 0:03:00]} 4. Nxd4 {[%clk 0:02:55]}  Nf6 {[%clk 0:03:01]} 5. Nc3 {[%clk 0:02:55]}  Nc6 {[%clk 0:03:01]} 6. Bg5 {[%clk 0:02:53]}  e6 {[%clk 0:03:01]} 7. Qd2 {[%clk 0:02:52]}  a6 {[%clk 0:03:00]} 8. O-O-O {[%clk 0:02:51]}  Bd7 {[%clk 0:02:59]} 9. f4 {[%clk 0:02:50]}  b5 {[%clk 0:02:51]} 10. Nxc6 {[%clk 0:02:47]}  Bxc6 {[%clk 0:02:50]} 11. Bd3 {[%clk 0:02:48]}  Be7 {[%clk 0:02:48]} 12. e5 {[%clk 0:02:43]}  dxe5 {[%clk 0:02:43]} 13. fxe5 {[%clk 0:02:44]}  Nd5 {[%clk 0:02:37]} 14. Bxe7 {[%clk 0:02:43]}  Nxe7 {[%clk 0:02:31]} 15. Kb1 {[%clk 0:02:33]}  O-O {[%clk 0:02:27]} 16. h4 {[%clk 0:01:52]}  Qc7 {[%clk 0:02:19]} 17. Qf4 {[%clk 0:01:49]}  Nd5 {[%clk 0:02:11]} 18. Nxd5 {[%clk 0:01:46]}  Bxd5 {[%clk 0:02:11]} 19. h5 {[%clk 0:01:44]}  f6 {[%clk 0:01:58]} 20. Rhe1 {[%clk 0:01:00]}  fxe5 {[%clk 0:01:50]} 21. Qxe5 {[%clk 0:01:00]}  Qxe5 {[%clk 0:01:44]} 22. Rxe5 {[%clk 0:00:59]}  Rf4 {[%clk 0:01:45]} 23. b3 {[%clk 0:00:45]}  b4 {[%clk 0:01:23]} 24. g3 {[%clk 0:00:42]}  Rg4 {[%clk 0:01:21]} 25. Bf5 {[%clk 0:00:32]}  exf5 {[%clk 0:00:43]} 26. Rdxd5 {[%clk 0:00:31]}  Rxg3 {[%clk 0:00:39]} 27. Rxf5 {[%clk 0:00:30]}  Rc8 {[%clk 0:00:37]} 28. Rc5 {[%clk 0:00:18]}  Rc3 {[%clk 0:00:32]} 29. Rxc8+ {[%clk 0:00:15]}  Rxc8 {[%clk 0:00:33]} 30. Kb2 {[%clk 0:00:14]}  Rc6 {[%clk 0:00:31]} 31. Rf4 {[%clk 0:00:12]}  Rb6 {[%clk 0:00:26]} 32. a3 {[%clk 0:00:12]}  a5 {[%clk 0:00:23]} 33. Rf5 {[%clk 0:00:12]}  Ra6 {[%clk 0:00:16]} 34. axb4 {[%clk 0:00:10]}  axb4 {[%clk 0:00:16]} 35. Rb5 {[%clk 0:00:11]}  Rh6 {[%clk 0:00:13]} 36. Rxb4 {[%clk 0:00:10]}  Rxh5 {[%clk 0:00:13]} 37. c4 {[%clk 0:00:05]}  g5 {[%clk 0:00:13]} 38. Rb5 {[%clk 0:00:05]}  Rh2+ {[%clk 0:00:09]} 39. Ka3 {[%clk 0:00:05]}  h6 {[%clk 0:00:09]} 40. c5 {[%clk 0:00:05]}  g4 {[%clk 0:00:09]} 0-1


[Site "https://www.chess.com"]

[Event "Titled Tuesday Blitz February 28 Early 2023"]
[White "Andreev, Konstantin"]
[Black "Koellner, Ruben Gideon"]
[WhiteFideId "24239305"]
[BlackFideId "12993093"]
[WhiteElo "2106"]
[BlackElo "2303"]
[Result "1-0"]
[Round "10"]
[TimeControl "180+2"]
[Date "2023.02.28"]
[WhiteClock "0:00:03"]
[BlackClock "0:00:06"]

1. e4 {[%clk 0:02:00]}  d6 {[%clk 0:02:59]} 2. d4 {[%clk 0:02:00]}  Nf6 {[%clk 0:02:59]} 3. Nc3 {[%clk 0:02:00]}  e5 {[%clk 0:02:59]} 4. Nf3 {[%clk 0:01:59]}  Nbd7 {[%clk 0:02:55]} 5. Bc4 {[%clk 0:01:59]}  Be7 {[%clk 0:02:55]} 6. O-O {[%clk 0:01:59]}  c6 {[%clk 0:02:55]} 7. a4 {[%clk 0:01:58]}  h6 {[%clk 0:02:55]} 8. h3 {[%clk 0:01:56]}  Qc7 {[%clk 0:02:55]} 9. Re1 {[%clk 0:01:55]}  Nf8 {[%clk 0:02:56]} 10. Bf1 {[%clk 0:01:53]}  g5 {[%clk 0:02:55]} 11. Be3 {[%clk 0:01:52]}  Ng6 {[%clk 0:02:55]} 12. Qd2 {[%clk 0:01:45]}  g4 {[%clk 0:02:55]} 13. hxg4 {[%clk 0:01:44]}  Bxg4 {[%clk 0:02:56]} 14. Nh2 {[%clk 0:01:43]}  Bd7 {[%clk 0:02:54]} 15. Bc4 {[%clk 0:01:40]}  h5 {[%clk 0:02:47]} 16. Rad1 {[%clk 0:01:38]}  Ng4 {[%clk 0:02:45]} 17. Bg5 {[%clk 0:01:34]}  Nxh2 {[%clk 0:02:34]} 18. Bxe7 {[%clk 0:01:31]}  Nf3+ {[%clk 0:02:06]} 19. gxf3 {[%clk 0:01:32]}  Nxe7 {[%clk 0:01:38]} 20. dxe5 {[%clk 0:01:31]}  dxe5 {[%clk 0:01:37]} 21. Bxf7+ {[%clk 0:01:29]}  Kxf7 {[%clk 0:01:38]} 22. Qxd7 {[%clk 0:01:29]}  Qxd7 {[%clk 0:01:39]} 23. Rxd7 {[%clk 0:01:29]}  Rad8 {[%clk 0:01:29]} 24. Red1 {[%clk 0:01:29]}  Rxd7 {[%clk 0:01:27]} 25. Rxd7 {[%clk 0:01:30]}  Rb8 {[%clk 0:01:27]} 26. Ne2 {[%clk 0:01:18]}  Ke6 {[%clk 0:01:27]} 27. Rd3 {[%clk 0:01:18]}  Ng6 {[%clk 0:01:21]} 28. Ng3 {[%clk 0:01:08]}  Nf4 {[%clk 0:01:20]} 29. Rb3 {[%clk 0:01:08]}  b6 {[%clk 0:01:17]} 30. a5 {[%clk 0:01:02]}  b5 {[%clk 0:01:09]} 31. Rc3 {[%clk 0:01:01]}  h4 {[%clk 0:01:09]} 32. Nf5 {[%clk 0:00:57]}  Ne2+ {[%clk 0:01:09]} 33. Kf1 {[%clk 0:00:54]}  Nxc3 {[%clk 0:01:10]} 34. bxc3 {[%clk 0:00:54]}  h3 {[%clk 0:01:07]} 35. Kg1 {[%clk 0:00:52]}  Rg8+ {[%clk 0:01:07]} 36. Ng3 {[%clk 0:00:50]}  Rd8 {[%clk 0:01:04]} 37. Kh2 {[%clk 0:00:45]}  Rd2 {[%clk 0:01:05]} 38. Kxh3 {[%clk 0:00:45]}  Rxc2 {[%clk 0:01:05]} 39. Kg4 {[%clk 0:00:45]}  Rxf2 {[%clk 0:00:59]} 40. Nf5 {[%clk 0:00:40]}  Rg2+ {[%clk 0:00:57]} 41. Kh3 {[%clk 0:00:40]}  Rc2 {[%clk 0:00:56]} 42. Kg4 {[%clk 0:00:40]}  Rxc3 {[%clk 0:00:56]} 43. f4 {[%clk 0:00:39]}  exf4 {[%clk 0:00:56]} 44. Kxf4 {[%clk 0:00:40]}  b4 {[%clk 0:00:56]} 45. Nd4+ {[%clk 0:00:39]}  Kd6 {[%clk 0:00:55]} 46. e5+ {[%clk 0:00:36]}  Kd5 {[%clk 0:00:55]} 47. Ne2 {[%clk 0:00:36]}  Rc4+ {[%clk 0:00:53]} 48. Kf5 {[%clk 0:00:35]}  b3 {[%clk 0:00:48]} 49. e6 {[%clk 0:00:34]}  Re4 {[%clk 0:00:43]} 50. Nc3+ {[%clk 0:00:33]}  Kd4 {[%clk 0:00:05]} 51. Nxe4 {[%clk 0:00:33]}  b2 {[%clk 0:00:06]} 52. Nd2 {[%clk 0:00:21]}  Kd3 {[%clk 0:00:06]} 53. Nb1 {[%clk 0:00:21]}  Kc2 {[%clk 0:00:07]} 54. e7 {[%clk 0:00:22]}  Kxb1 {[%clk 0:00:07]} 55. e8=Q {[%clk 0:00:23]}  Ka1 {[%clk 0:00:02]} 56. Qe5 {[%clk 0:00:22]}  Ka2 {[%clk 0:00:01]} 57. Qe2 {[%clk 0:00:20]}  Ka1 {[%clk 0:00:01]} 58. Qe5 {[%clk 0:00:17]}  Ka2 {[%clk 0:00:01]} 59. Qe6+ {[%clk 0:00:16]}  Ka1 {[%clk 0:00:01]} 60. Qf6 {[%clk 0:00:13]}  Ka2 {[%clk 0:00:01]} 61. Qf7+ {[%clk 0:00:09]}  Ka1 {[%clk 0:00:01]} 62. Qxa7 {[%clk 0:00:09]}  b1=Q+ {[%clk 0:00:02]} 63. Ke6 {[%clk 0:00:10]}  Qb5 {[%clk 0:00:02]} 64. a6 {[%clk 0:00:07]}  Qd5+ {[%clk 0:00:02]} 65. Ke7 {[%clk 0:00:07]}  Qe5+ {[%clk 0:00:02]} 66. Kd8 {[%clk 0:00:05]}  Qh8+ {[%clk 0:00:01]} 67. Kc7 {[%clk 0:00:05]}  Qg7+ {[%clk 0:00:01]} 68. Kb6 {[%clk 0:00:05]}  Qxa7+ {[%clk 0:00:01]} 69. Kxa7 {[%clk 0:00:05]}  c5 {[%clk 0:00:02]} 70. Kb6 {[%clk 0:00:06]}  c4 {[%clk 0:00:03]} 71. a7 {[%clk 0:00:07]}  c3 {[%clk 0:00:04]} 72. a8=Q+ {[%clk 0:00:07]}  Kb2 {[%clk 0:00:04]} 73. Qh8 {[%clk 0:00:06]}  Kb3 {[%clk 0:00:04]} 74. Qh3 {[%clk 0:00:06]}  Kb2 {[%clk 0:00:04]} 75. Qh8 {[%clk 0:00:05]}  Kb3 {[%clk 0:00:04]} 76. Qg8+ {[%clk 0:00:05]}  Kb2 {[%clk 0:00:04]} 77. Qg7 {[%clk 0:00:05]}  Kb3 {[%clk 0:00:04]} 78. Qf7+ {[%clk 0:00:06]}  Ka3 {[%clk 0:00:04]} 79. Qe7+ {[%clk 0:00:04]}  Kb3 {[%clk 0:00:04]} 80. Qe6+ {[%clk 0:00:05]}  Kb2 {[%clk 0:00:03]} 81. Qe5 {[%clk 0:00:05]}  Kb3 {[%clk 0:00:04]} 82. Qd5+ {[%clk 0:00:05]}  Ka3 {[%clk 0:00:04]} 83. Qc4 {[%clk 0:00:03]}  Kb2 {[%clk 0:00:04]} 84. Qb4+ {[%clk 0:00:03]}  Kc2 {[%clk 0:00:05]} 85. Kc5 {[%clk 0:00:03]}  Kd3 {[%clk 0:00:05]} 86. Qc4+ {[%clk 0:00:03]}  Kc2 {[%clk 0:00:06]} 87. Kd4 {[%clk 0:00:03]} 1-0


[Site "https://www.chess.com"]

[Event "Titled Tuesday Blitz February 28 Early 2023"]
[White "Souleidis, Georgios"]
[Black "Llanos, Guillermo"]
[WhiteFideId "4206827"]
[BlackFideId "100358"]
[WhiteElo "2401"]
[BlackElo "2225"]
[Result "1-0"]
[Round "10"]
[TimeControl "180+2"]
[Date "2023.02.28"]
[WhiteClock "0:00:09"]
[BlackClock "0:00:40"]

1. e4 {[%clk 0:03:00]}  Nf6 {[%clk 0:02:57]} 2. Nc3 {[%clk 0:02:59]}  d5 {[%clk 0:02:55]} 3. exd5 {[%clk 0:03:00]}  Nxd5 {[%clk 0:02:55]} 4. Bc4 {[%clk 0:03:00]}  Nb6 {[%clk 0:02:54]} 5. Bb3 {[%clk 0:03:00]}  c5 {[%clk 0:02:55]} 6. Qh5 {[%clk 0:02:58]}  c4 {[%clk 0:02:54]} 7. Bxc4 {[%clk 0:02:58]}  Nxc4 {[%clk 0:02:55]} 8. Qb5+ {[%clk 0:02:59]}  Bd7 {[%clk 0:02:54]} 9. Qxc4 {[%clk 0:03:00]}  g6 {[%clk 0:02:51]} 10. Nf3 {[%clk 0:02:58]}  Bg7 {[%clk 0:02:51]} 11. O-O {[%clk 0:02:56]}  O-O {[%clk 0:02:51]} 12. d4 {[%clk 0:02:56]}  Nc6 {[%clk 0:02:42]} 13. h3 {[%clk 0:02:45]}  Rc8 {[%clk 0:02:41]} 14. Qb3 {[%clk 0:01:58]}  Nxd4 {[%clk 0:02:39]} 15. Nxd4 {[%clk 0:01:58]}  Bxd4 {[%clk 0:02:38]} 16. Bh6 {[%clk 0:01:51]}  Re8 {[%clk 0:02:25]} 17. Rad1 {[%clk 0:01:48]}  Bc6 {[%clk 0:02:16]} 18. Ne2 {[%clk 0:01:27]}  e5 {[%clk 0:02:15]} 19. Nxd4 {[%clk 0:00:54]}  exd4 {[%clk 0:02:14]} 20. Qg3 {[%clk 0:00:34]}  Qf6 {[%clk 0:02:06]} 21. Rfe1 {[%clk 0:00:30]}  Rxe1+ {[%clk 0:01:51]} 22. Rxe1 {[%clk 0:00:30]}  Qf5 {[%clk 0:01:48]} 23. Kh2 {[%clk 0:00:21]}  Qf6 {[%clk 0:01:34]} 24. Bg5 {[%clk 0:00:19]}  Qf5 {[%clk 0:01:30]} 25. Re7 {[%clk 0:00:19]}  Qd5 {[%clk 0:01:28]} 26. f3 {[%clk 0:00:16]}  Kg7 {[%clk 0:01:25]} 27. Qh4 {[%clk 0:00:14]}  h5 {[%clk 0:01:23]} 28. Qf4 {[%clk 0:00:14]}  Re8 {[%clk 0:01:13]} 29. Bf6+ {[%clk 0:00:13]}  Kh7 {[%clk 0:01:10]} 30. Rxe8 {[%clk 0:00:14]}  Bxe8 {[%clk 0:01:10]} 31. Bxd4 {[%clk 0:00:15]}  Qf5 {[%clk 0:01:04]} 32. Qxf5 {[%clk 0:00:14]}  gxf5 {[%clk 0:01:03]} 33. Bxa7 {[%clk 0:00:15]}  b5 {[%clk 0:01:01]} 34. Kg3 {[%clk 0:00:14]}  Kg6 {[%clk 0:01:01]} 35. Kf4 {[%clk 0:00:15]}  Kf6 {[%clk 0:01:01]} 36. Bd4+ {[%clk 0:00:14]}  Ke6 {[%clk 0:01:01]} 37. c3 {[%clk 0:00:15]}  Bc6 {[%clk 0:01:00]} 38. h4 {[%clk 0:00:15]}  Bd5 {[%clk 0:01:00]} 39. b3 {[%clk 0:00:16]}  f6 {[%clk 0:00:59]} 40. Bb6 {[%clk 0:00:15]}  Bc6 {[%clk 0:00:59]} 41. Bd8 {[%clk 0:00:11]}  Bd5 {[%clk 0:00:58]} 42. Ke3 {[%clk 0:00:12]}  Ke5 {[%clk 0:00:57]} 43. Bc7+ {[%clk 0:00:11]}  Ke6 {[%clk 0:00:57]} 44. Kd4 {[%clk 0:00:12]}  Bc6 {[%clk 0:00:56]} 45. Kc5 {[%clk 0:00:12]}  Be8 {[%clk 0:00:54]} 46. Bf4 {[%clk 0:00:12]}  Bd7 {[%clk 0:00:53]} 47. c4 {[%clk 0:00:13]}  bxc4 {[%clk 0:00:53]} 48. Kxc4 {[%clk 0:00:14]}  Bc6 {[%clk 0:00:50]} 49. Kc5 {[%clk 0:00:14]}  Bd5 {[%clk 0:00:50]} 50. Kb4 {[%clk 0:00:12]}  Kd7 {[%clk 0:00:49]} 51. a4 {[%clk 0:00:12]}  Kc6 {[%clk 0:00:50]} 52. Be3 {[%clk 0:00:11]}  Be6 {[%clk 0:00:47]} 53. Kc3 {[%clk 0:00:09]}  Kb7 {[%clk 0:00:44]} 54. b4 {[%clk 0:00:10]}  Ba2 {[%clk 0:00:41]} 55. b5 {[%clk 0:00:10]}  Bb1 {[%clk 0:00:41]} 56. Bd4 {[%clk 0:00:10]}  f4 {[%clk 0:00:40]} 57. Bxf6 {[%clk 0:00:09]}  Ba2 {[%clk 0:00:40]} 58. Be5 {[%clk 0:00:09]} 1-0


[Site "https://www.chess.com"]

[Event "Titled Tuesday Blitz February 28 Early 2023"]
[White "Kislov, Oleg"]
[Black "Starozhilov, Leonid"]
[WhiteFideId "13503774"]
[BlackFideId "14106752"]
[WhiteElo "2186"]
[BlackElo "2414"]
[Result "1-0"]
[Round "10"]
[TimeControl "180+2"]
[Date "2023.02.28"]
[WhiteClock "0:00:16"]
[BlackClock "0:00:03"]

1. e4 {[%clk 0:03:00]}  g6 {[%clk 0:02:58]} 2. d4 {[%clk 0:03:00]}  Bg7 {[%clk 0:02:58]} 3. Nc3 {[%clk 0:03:00]}  d6 {[%clk 0:02:59]} 4. Be3 {[%clk 0:02:58]}  a6 {[%clk 0:02:59]} 5. Qd2 {[%clk 0:02:58]}  b5 {[%clk 0:02:57]} 6. f3 {[%clk 0:02:58]}  Nd7 {[%clk 0:02:56]} 7. Nh3 {[%clk 0:02:52]}  Nb6 {[%clk 0:02:54]} 8. Nf2 {[%clk 0:02:52]}  Nf6 {[%clk 0:02:53]} 9. Bh6 {[%clk 0:02:48]}  Bxh6 {[%clk 0:02:48]} 10. Qxh6 {[%clk 0:02:47]}  b4 {[%clk 0:02:48]} 11. Ncd1 {[%clk 0:02:45]}  c5 {[%clk 0:02:46]} 12. d5 {[%clk 0:02:34]}  e6 {[%clk 0:02:30]} 13. dxe6 {[%clk 0:02:30]}  Bxe6 {[%clk 0:02:30]} 14. Ne3 {[%clk 0:02:31]}  Qe7 {[%clk 0:02:22]} 15. Rd1 {[%clk 0:02:14]}  Rg8 {[%clk 0:01:53]} 16. h4 {[%clk 0:01:59]}  Nh5 {[%clk 0:01:45]} 17. g4 {[%clk 0:01:38]}  Ng3 {[%clk 0:01:40]} 18. Rh2 {[%clk 0:01:32]}  Nxf1 {[%clk 0:01:39]} 19. Kxf1 {[%clk 0:01:31]}  O-O-O {[%clk 0:01:39]} 20. Qf4 {[%clk 0:01:25]}  Kb7 {[%clk 0:01:35]} 21. g5 {[%clk 0:01:24]}  Rge8 {[%clk 0:01:20]} 22. Nfg4 {[%clk 0:01:23]}  Bxg4 {[%clk 0:01:04]} 23. Nxg4 {[%clk 0:01:23]}  Qe6 {[%clk 0:00:59]} 24. b3 {[%clk 0:01:17]}  d5 {[%clk 0:00:46]} 25. Rhd2 {[%clk 0:01:12]}  d4 {[%clk 0:00:46]} 26. Nf6 {[%clk 0:01:11]}  Re7 {[%clk 0:00:44]} 27. Kg2 {[%clk 0:01:05]}  Rc7 {[%clk 0:00:35]} 28. Qg4 {[%clk 0:01:00]}  Qd6 {[%clk 0:00:30]} 29. Nxh7 {[%clk 0:00:55]}  Nd7 {[%clk 0:00:27]} 30. Qg3 {[%clk 0:00:44]}  Qc6 {[%clk 0:00:25]} 31. e5 {[%clk 0:00:41]}  Re8 {[%clk 0:00:17]} 32. Re1 {[%clk 0:00:40]}  Nb6 {[%clk 0:00:11]} 33. Nf6 {[%clk 0:00:39]}  Re6 {[%clk 0:00:11]} 34. Kf2 {[%clk 0:00:32]}  Rce7 {[%clk 0:00:10]} 35. f4 {[%clk 0:00:33]}  Nd5 {[%clk 0:00:09]} 36. Nxd5 {[%clk 0:00:32]}  Qxd5 {[%clk 0:00:10]} 37. Qf3 {[%clk 0:00:32]}  Kc6 {[%clk 0:00:10]} 38. Qxd5+ {[%clk 0:00:30]}  Kxd5 {[%clk 0:00:11]} 39. Kf3 {[%clk 0:00:31]}  Re8 {[%clk 0:00:11]} 40. h5 {[%clk 0:00:28]}  gxh5 {[%clk 0:00:11]} 41. Rh1 {[%clk 0:00:28]}  Rh8 {[%clk 0:00:09]} 42. Rdh2 {[%clk 0:00:28]}  c4 {[%clk 0:00:09]} 43. bxc4+ {[%clk 0:00:28]}  Kxc4 {[%clk 0:00:10]} 44. Ke4 {[%clk 0:00:28]}  Rd8 {[%clk 0:00:07]} 45. Rh3 {[%clk 0:00:25]}  a5 {[%clk 0:00:07]} 46. Rd3 {[%clk 0:00:25]}  Rc6 {[%clk 0:00:06]} 47. Rxh5 {[%clk 0:00:24]}  a4 {[%clk 0:00:06]} 48. Rh1 {[%clk 0:00:21]}  Rc5 {[%clk 0:00:06]} 49. Rhd1 {[%clk 0:00:21]}  Rcd5 {[%clk 0:00:04]} 50. Kf5 {[%clk 0:00:21]}  a3 {[%clk 0:00:04]} 51. g6 {[%clk 0:00:20]}  fxg6+ {[%clk 0:00:04]} 52. Kxg6 {[%clk 0:00:21]}  Kc5 {[%clk 0:00:04]} 53. e6 {[%clk 0:00:18]}  Rf8 {[%clk 0:00:04]} 54. e7 {[%clk 0:00:17]}  Re8 {[%clk 0:00:04]} 55. Kf7 {[%clk 0:00:17]}  Rh8 {[%clk 0:00:03]} 56. e8=Q {[%clk 0:00:17]}  Rf5+ {[%clk 0:00:03]} 57. Ke6 {[%clk 0:00:17]}  Rxe8+ {[%clk 0:00:02]} 58. Kxf5 {[%clk 0:00:17]}  Rd8 {[%clk 0:00:03]} 59. Ke4 {[%clk 0:00:16]} 1-0


[Site "https://www.chess.com"]

[Event "Titled Tuesday Blitz February 28 Early 2023"]
[White "Ambartsumova, Karina"]
[Black "Belov, Alexei"]
[WhiteFideId "4166299"]
[BlackFideId "4128206"]
[WhiteElo "2319"]
[BlackElo "2503"]
[Result "1-0"]
[Round "10"]
[TimeControl "180+2"]
[Date "2023.02.28"]
[WhiteClock "0:00:29"]
[BlackClock "0:01:30"]

1. Nf3 {[%clk 0:03:00]}  Nf6 {[%clk 0:02:59]} 2. c4 {[%clk 0:03:00]}  e6 {[%clk 0:02:59]} 3. e3 {[%clk 0:02:59]}  d5 {[%clk 0:03:00]} 4. Nc3 {[%clk 0:03:00]}  Be7 {[%clk 0:03:00]} 5. Qc2 {[%clk 0:03:00]}  O-O {[%clk 0:03:00]} 6. b3 {[%clk 0:03:00]}  Nbd7 {[%clk 0:02:59]} 7. Bb2 {[%clk 0:03:00]}  c5 {[%clk 0:02:57]} 8. cxd5 {[%clk 0:03:00]}  exd5 {[%clk 0:02:57]} 9. h4 {[%clk 0:02:57]}  b6 {[%clk 0:02:54]} 10. Bd3 {[%clk 0:02:51]}  Bb7 {[%clk 0:02:52]} 11. Ng5 {[%clk 0:02:51]}  h6 {[%clk 0:02:52]} 12. O-O-O {[%clk 0:02:29]}  Ne5 {[%clk 0:02:49]} 13. Bh7+ {[%clk 0:02:12]}  Kh8 {[%clk 0:02:48]} 14. d4 {[%clk 0:01:40]}  cxd4 {[%clk 0:02:41]} 15. exd4 {[%clk 0:01:39]}  Neg4 {[%clk 0:02:38]} 16. Bf5 {[%clk 0:01:26]}  Bc8 {[%clk 0:02:31]} 17. Rde1 {[%clk 0:01:09]}  Bxf5 {[%clk 0:02:28]} 18. Qxf5 {[%clk 0:01:10]}  Rc8 {[%clk 0:02:22]} 19. Kb1 {[%clk 0:01:03]}  Bb4 {[%clk 0:02:21]} 20. f3 {[%clk 0:00:28]}  Nf2 {[%clk 0:02:06]} 21. Rhf1 {[%clk 0:00:27]}  Bxc3 {[%clk 0:01:47]} 22. Bxc3 {[%clk 0:00:28]}  Rxc3 {[%clk 0:01:48]} 23. Rxf2 {[%clk 0:00:29]}  g6 {[%clk 0:01:36]} 24. Qe5 {[%clk 0:00:29]}  Re8 {[%clk 0:01:30]} 25. Nxf7+ {[%clk 0:00:29]}  Kg7 {[%clk 0:01:30]} 26. Nxd8 {[%clk 0:00:29]}  Rxe5 {[%clk 0:01:30]} 27. dxe5 {[%clk 0:00:29]} 1-0


[Site "https://www.chess.com"]